[Event "Titled Tuesday Blitz February 15 Early 2022"]
[White "Alinasab, Mobina"]
[Black "Cramling Bellon, Anna"]
[WhiteFideId "12528897"]
[BlackFideId "32009232"]
[WhiteElo "2061"]
[BlackElo "1905"]
[Result "1-0"]
[Round "01"]
[TimeControl "180+1"]
[Date "2022.02.15"]
[WhiteClock "0:00:12"]
[BlackClock "0:00:03"]

1. Nf3 {[%clk 0:02:58]}  c5 {[%clk 0:02:58]} 2. g3 {[%clk 0:02:55]}  d5 {[%clk 0:02:57]} 3. Bg2 {[%clk 0:02:52]}  Nc6 {[%clk 0:02:57]} 4. d4 {[%clk 0:02:52]}  cxd4 {[%clk 0:02:54]} 5. Nxd4 {[%clk 0:02:53]}  Nf6 {[%clk 0:02:53]} 6. O-O {[%clk 0:02:48]}  e5 {[%clk 0:02:50]} 7. Nxc6 {[%clk 0:02:47]}  bxc6 {[%clk 0:02:50]} 8. b3 {[%clk 0:02:48]}  Bd6 {[%clk 0:02:45]} 9. c4 {[%clk 0:02:47]}  Be6 {[%clk 0:02:44]} 10. Nc3 {[%clk 0:02:47]}  e4 {[%clk 0:02:29]} 11. Bg5 {[%clk 0:02:39]}  Be5 {[%clk 0:02:20]} 12. Rc1 {[%clk 0:02:38]}  O-O {[%clk 0:02:13]} 13. cxd5 {[%clk 0:02:34]}  cxd5 {[%clk 0:02:12]} 14. Na4 {[%clk 0:02:32]}  h6 {[%clk 0:02:01]} 15. Bd2 {[%clk 0:02:29]}  Rc8 {[%clk 0:02:00]} 16. Nc5 {[%clk 0:02:25]}  Qb6 {[%clk 0:01:43]} 17. Nxe6 {[%clk 0:02:21]}  fxe6 {[%clk 0:01:38]} 18. Be3 {[%clk 0:02:08]}  d4 {[%clk 0:01:35]} 19. Rxc8 {[%clk 0:02:00]}  Rxc8 {[%clk 0:01:35]} 20. Bc1 {[%clk 0:01:59]}  e3 {[%clk 0:01:12]} 21. fxe3 {[%clk 0:01:54]}  dxe3 {[%clk 0:01:13]} 22. Qd3 {[%clk 0:01:50]}  Rd8 {[%clk 0:01:06]} 23. Qc4 {[%clk 0:01:42]}  Rd4 {[%clk 0:00:44]} 24. Bxe3 {[%clk 0:00:40]}  Ng4 {[%clk 0:00:41]} 25. Qc8+ {[%clk 0:00:37]}  Rd8 {[%clk 0:00:23]} 26. Bxb6 {[%clk 0:00:35]}  Rxc8 {[%clk 0:00:23]} 27. Bxa7 {[%clk 0:00:34]}  Rc2 {[%clk 0:00:21]} 28. Bf3 {[%clk 0:00:32]}  Nf6 {[%clk 0:00:17]} 29. a4 {[%clk 0:00:31]}  Rc7 {[%clk 0:00:08]} 30. Bb6 {[%clk 0:00:28]}  Rc3 {[%clk 0:00:06]} 31. b4 {[%clk 0:00:28]}  Rc4 {[%clk 0:00:03]} 32. Rb1 {[%clk 0:00:25]}  Nd5 {[%clk 0:00:03]} 33. Bxd5 {[%clk 0:00:24]}  exd5 {[%clk 0:00:03]} 34. a5 {[%clk 0:00:24]}  d4 {[%clk 0:00:02]} 35. a6 {[%clk 0:00:24]}  Bf6 {[%clk 0:00:01]} 36. a7 {[%clk 0:00:23]}  Rc8 {[%clk 0:00:01]} 37. Bc7 {[%clk 0:00:20]}  Ra8 {[%clk 0:00:02]} 38. Bb8 {[%clk 0:00:19]}  Bg5 {[%clk 0:00:01]} 39. b5 {[%clk 0:00:17]}  Be3+ {[%clk 0:00:02]} 40. Kg2 {[%clk 0:00:17]}  d3 {[%clk 0:00:01]} 41. b6 {[%clk 0:00:12]}  d2 {[%clk 0:00:02]} 42. b7 {[%clk 0:00:11]}  Rxa7 {[%clk 0:00:01]} 43. Bxa7 {[%clk 0:00:11]}  Bxa7 {[%clk 0:00:02]} 44. b8=Q+ {[%clk 0:00:11]}  Bxb8 {[%clk 0:00:02]} 45. Rxb8+ {[%clk 0:00:11]}  Kh7 {[%clk 0:00:03]} 46. Rd8 {[%clk 0:00:12]} 1-0


[Site "https://www.chess.com"]

[Event "Titled Tuesday Blitz February 15 Early 2022"]
[White "Al-Tarboush, Ward"]
[Black "Sarana, Alexey"]
[WhiteFideId "7601450"]
[BlackFideId "24133795"]
[WhiteElo "2276"]
[BlackElo "2665"]
[Result "0-1"]
[Round "01"]
[TimeControl "180+1"]
[Date "2022.02.15"]
[WhiteClock "0:00:08"]
[BlackClock "0:01:31"]

1. e4 {[%clk 0:03:00]}  c5 {[%clk 0:02:59]} 2. Nf3 {[%clk 0:03:01]}  d6 {[%clk 0:02:59]} 3. d4 {[%clk 0:03:01]}  cxd4 {[%clk 0:03:00]} 4. Nxd4 {[%clk 0:03:02]}  Nf6 {[%clk 0:03:01]} 5. Nc3 {[%clk 0:03:02]}  a6 {[%clk 0:03:02]} 6. h3 {[%clk 0:03:01]}  e5 {[%clk 0:03:00]} 7. Nde2 {[%clk 0:03:02]}  b5 {[%clk 0:03:01]} 8. g4 {[%clk 0:03:01]}  b4 {[%clk 0:03:01]} 9. Nd5 {[%clk 0:03:01]}  Nxd5 {[%clk 0:03:02]} 10. Qxd5 {[%clk 0:03:01]}  Ra7 {[%clk 0:03:02]} 11. Be3 {[%clk 0:03:01]}  Be6 {[%clk 0:03:02]} 12. Qd3 {[%clk 0:03:01]}  Rd7 {[%clk 0:03:02]} 13. Bg2 {[%clk 0:03:01]}  Be7 {[%clk 0:02:56]} 14. O-O {[%clk 0:03:01]}  Qc7 {[%clk 0:02:52]} 15. b3 {[%clk 0:02:56]}  O-O {[%clk 0:02:47]} 16. Ng3 {[%clk 0:02:57]}  Rc8 {[%clk 0:02:44]} 17. Rac1 {[%clk 0:02:55]}  g6 {[%clk 0:02:41]} 18. Rfd1 {[%clk 0:02:55]}  Qa5 {[%clk 0:02:41]} 19. Nf5 {[%clk 0:02:50]}  Bf8 {[%clk 0:02:40]} 20. Qd2 {[%clk 0:02:27]}  Qxa2 {[%clk 0:02:33]} 21. Qxb4 {[%clk 0:02:26]}  d5 {[%clk 0:02:33]} 22. Qb6 {[%clk 0:01:56]}  d4 {[%clk 0:02:32]} 23. Bd2 {[%clk 0:01:24]}  Bc5 {[%clk 0:02:28]} 24. Qa5 {[%clk 0:01:16]}  Qxa5 {[%clk 0:02:27]} 25. Bxa5 {[%clk 0:01:17]}  f6 {[%clk 0:02:20]} 26. Ng3 {[%clk 0:01:12]}  Nc6 {[%clk 0:02:20]} 27. Be1 {[%clk 0:01:11]}  Bb4 {[%clk 0:02:20]} 28. Bf1 {[%clk 0:01:09]}  Bxe1 {[%clk 0:02:19]} 29. Rxe1 {[%clk 0:01:10]}  Nb4 {[%clk 0:02:20]} 30. Bd3 {[%clk 0:01:08]}  Rdc7 {[%clk 0:02:10]} 31. Ra1 {[%clk 0:01:00]}  Nxc2 {[%clk 0:02:03]} 32. Bxc2 {[%clk 0:01:00]}  Rxc2 {[%clk 0:02:04]} 33. Rxa6 {[%clk 0:01:01]}  Kf7 {[%clk 0:02:05]} 34. Nf1 {[%clk 0:00:56]}  Bxb3 {[%clk 0:02:03]} 35. Rb1 {[%clk 0:00:56]}  R2c3 {[%clk 0:02:03]} 36. Ra3 {[%clk 0:00:52]}  Be6 {[%clk 0:02:00]} 37. Ra6 {[%clk 0:00:41]}  R8c7 {[%clk 0:01:45]} 38. Rbb6 {[%clk 0:00:36]}  Bc4 {[%clk 0:01:42]} 39. Ra1 {[%clk 0:00:26]}  Rxh3 {[%clk 0:01:41]} 40. Ng3 {[%clk 0:00:25]}  Be6 {[%clk 0:01:38]} 41. Raa6 {[%clk 0:00:11]}  Bxg4 {[%clk 0:01:38]} 42. Rxf6+ {[%clk 0:00:12]}  Kg7 {[%clk 0:01:38]} 43. Rfd6 {[%clk 0:00:10]}  Rh4 {[%clk 0:01:35]} 44. Kg2 {[%clk 0:00:09]}  Bh3+ {[%clk 0:01:35]} 45. Kf3 {[%clk 0:00:09]}  Rf7+ {[%clk 0:01:32]} 46. Ke2 {[%clk 0:00:09]}  Bg4+ {[%clk 0:01:32]} 47. Ke1 {[%clk 0:00:09]}  Rh2 {[%clk 0:01:32]} 48. Ra2 {[%clk 0:00:08]}  Rg2 {[%clk 0:01:31]} 49. Rd5 {[%clk 0:00:08]}  Rg1+ {[%clk 0:01:31]} 50. Nf1 {[%clk 0:00:08]}  Bh3 {[%clk 0:01:31]} 0-1


[Site "https://www.chess.com"]

[Event "Titled Tuesday Blitz February 15 Early 2022"]
[White "Ambartsumova, Karina"]
[Black "Soumya, Swaminathan"]
[WhiteFideId "4166299"]
[BlackFideId "5016193"]
[WhiteElo "2262"]
[BlackElo "2115"]
[Result "1-0"]
[Round "01"]
[TimeControl "180+1"]
[Date "2022.02.15"]
[WhiteClock "0:00:06"]
[BlackClock "0:00:03"]

1. c4 {[%clk 0:02:58]}  Nf6 {[%clk 0:02:59]} 2. Nf3 {[%clk 0:02:56]}  g6 {[%clk 0:02:59]} 3. g3 {[%clk 0:02:55]}  Bg7 {[%clk 0:02:59]} 4. Bg2 {[%clk 0:02:56]}  O-O {[%clk 0:02:59]} 5. O-O {[%clk 0:02:55]}  d5 {[%clk 0:02:49]} 6. d4 {[%clk 0:02:52]}  dxc4 {[%clk 0:02:48]} 7. Na3 {[%clk 0:02:48]}  c3 {[%clk 0:02:49]} 8. bxc3 {[%clk 0:02:48]}  c5 {[%clk 0:02:49]} 9. Nc4 {[%clk 0:02:43]}  Nc6 {[%clk 0:02:22]} 10. Bf4 {[%clk 0:02:34]}  Nd5 {[%clk 0:02:20]} 11. Bd2 {[%clk 0:01:44]}  cxd4 {[%clk 0:02:16]} 12. cxd4 {[%clk 0:01:44]}  Nxd4 {[%clk 0:02:16]} 13. Nxd4 {[%clk 0:01:39]}  Bxd4 {[%clk 0:02:16]} 14. Bh6 {[%clk 0:01:34]}  Bxa1 {[%clk 0:01:29]} 15. Bxf8 {[%clk 0:01:31]}  Bf6 {[%clk 0:01:07]} 16. Bxe7 {[%clk 0:00:58]}  Qxe7 {[%clk 0:01:07]} 17. Bxd5 {[%clk 0:00:56]}  Bg4 {[%clk 0:01:02]} 18. Ne3 {[%clk 0:00:53]}  Bh3 {[%clk 0:00:56]} 19. Bg2 {[%clk 0:00:50]}  Bxg2 {[%clk 0:00:56]} 20. Kxg2 {[%clk 0:00:48]}  Qe4+ {[%clk 0:00:43]} 21. Kg1 {[%clk 0:00:47]}  Rd8 {[%clk 0:00:43]} 22. Qb3 {[%clk 0:00:46]}  h5 {[%clk 0:00:37]} 23. Rc1 {[%clk 0:00:35]}  Rd7 {[%clk 0:00:19]} 24. h4 {[%clk 0:00:21]}  Bd4 {[%clk 0:00:13]} 25. Rc8+ {[%clk 0:00:15]}  Kh7 {[%clk 0:00:10]} 26. Qb4 {[%clk 0:00:12]}  Re7 {[%clk 0:00:03]} 27. Nc2 {[%clk 0:00:06]} 1-0


[Site "https://www.chess.com"]

[Event "Titled Tuesday Blitz February 15 Early 2022"]
[White "Andreikin, Dmitry"]
[Black "Maltsevskaya, Aleksandra"]
[WhiteFideId "4158814"]
[BlackFideId "24174041"]
[WhiteElo "2736"]
[BlackElo "2283"]
[Result "1/2-1/2"]
[Round "01"]
[TimeControl "180+1"]
[Date "2022.02.15"]
[WhiteClock "0:01:37"]
[BlackClock "0:00:10"]

1. d4 {[%clk 0:03:00]}  Nf6 {[%clk 0:02:59]} 2. c4 {[%clk 0:03:00]}  g6 {[%clk 0:02:59]} 3. Nc3 {[%clk 0:03:00]}  Bg7 {[%clk 0:02:57]} 4. e4 {[%clk 0:03:00]}  d6 {[%clk 0:02:57]} 5. h3 {[%clk 0:03:00]}  O-O {[%clk 0:02:57]} 6. Be3 {[%clk 0:03:01]}  Na6 {[%clk 0:02:55]} 7. Nf3 {[%clk 0:03:00]}  c5 {[%clk 0:02:53]} 8. d5 {[%clk 0:03:00]}  e6 {[%clk 0:02:52]} 9. Bd3 {[%clk 0:03:00]}  exd5 {[%clk 0:02:50]} 10. exd5 {[%clk 0:03:00]}  Nb4 {[%clk 0:02:50]} 11. Bb1 {[%clk 0:02:59]}  b5 {[%clk 0:02:50]} 12. a3 {[%clk 0:02:53]}  Qa5 {[%clk 0:02:49]} 13. O-O {[%clk 0:02:47]}  bxc4 {[%clk 0:02:49]} 14. Nd2 {[%clk 0:02:44]}  Nbxd5 {[%clk 0:02:01]} 15. Nxc4 {[%clk 0:02:41]}  Nxc3 {[%clk 0:01:56]} 16. Nxa5 {[%clk 0:02:41]}  Nxd1 {[%clk 0:01:56]} 17. Rxd1 {[%clk 0:02:42]}  Rb8 {[%clk 0:01:46]} 18. Ba2 {[%clk 0:02:18]}  Rxb2 {[%clk 0:01:23]} 19. Nc4 {[%clk 0:02:18]}  Ne4 {[%clk 0:01:23]} 20. Nxb2 {[%clk 0:02:16]}  Bxb2 {[%clk 0:01:24]} 21. Rab1 {[%clk 0:02:16]}  Nc3 {[%clk 0:01:23]} 22. Rxd6 {[%clk 0:02:06]}  Nxb1 {[%clk 0:01:19]} 23. Bxb1 {[%clk 0:02:07]}  Bxa3 {[%clk 0:01:18]} 24. Ba2 {[%clk 0:02:04]}  a5 {[%clk 0:01:06]} 25. Rc6 {[%clk 0:01:56]}  Re8 {[%clk 0:00:29]} 26. Bxc5 {[%clk 0:01:50]}  Bd7 {[%clk 0:00:20]} 27. Rc7 {[%clk 0:01:43]}  Bxc5 {[%clk 0:00:20]} 28. Rxd7 {[%clk 0:01:41]}  Re7 {[%clk 0:00:14]} 29. Rxe7 {[%clk 0:01:41]}  Bxe7 {[%clk 0:00:13]} 30. g3 {[%clk 0:01:39]}  Kg7 {[%clk 0:00:13]} 31. Bb3 {[%clk 0:01:38]}  f5 {[%clk 0:00:13]} 32. f4 {[%clk 0:01:38]}  Kf6 {[%clk 0:00:14]} 33. Kg2 {[%clk 0:01:38]}  Bc5 {[%clk 0:00:14]} 34. Kf3 {[%clk 0:01:38]}  h6 {[%clk 0:00:14]} 35. g4 {[%clk 0:01:38]}  g5 {[%clk 0:00:10]} 36. fxg5+ {[%clk 0:01:37]}  hxg5 {[%clk 0:00:11]} 37. gxf5 {[%clk 0:01:37]}  Kxf5 {[%clk 0:00:11]} 38. Kg2 {[%clk 0:01:37]}  Be3 {[%clk 0:00:10]} 39. Kf3 {[%clk 0:01:37]}  Bf4 {[%clk 0:00:09]} 40. Bc2+ {[%clk 0:01:37]}  Ke5 {[%clk 0:00:10]} 41. Kg4 {[%clk 0:01:37]}  Kd4 {[%clk 0:00:09]} 42. h4 {[%clk 0:01:37]}  gxh4 {[%clk 0:00:10]} 43. Kxh4 {[%clk 0:01:37]}  a4 {[%clk 0:00:10]} 44. Bxa4 {[%clk 0:01:37]} 1/2-1/2


[Site "https://www.chess.com"]

[Event "Titled Tuesday Blitz February 15 Early 2022"]
[White "Arabidze, Meri"]
[Black "Vifleemskaia, Svetlana"]
[WhiteFideId "13604040"]
[BlackFideId "4129490"]
[WhiteElo "2329"]
[BlackElo "1901"]
[Result "1/2-1/2"]
[Round "01"]
[TimeControl "180+1"]
[Date "2022.02.15"]
[WhiteClock "0:00:16"]
[BlackClock "0:00:03"]

1. Nf3 {[%clk 0:03:00]}  Nf6 {[%clk 0:02:59]} 2. g3 {[%clk 0:03:01]}  b5 {[%clk 0:02:58]} 3. Bg2 {[%clk 0:03:01]}  Bb7 {[%clk 0:02:59]} 4. O-O {[%clk 0:03:01]}  e6 {[%clk 0:02:59]} 5. c3 {[%clk 0:03:02]}  Be7 {[%clk 0:02:58]} 6. a4 {[%clk 0:03:02]}  b4 {[%clk 0:02:51]} 7. cxb4 {[%clk 0:03:00]}  Bxb4 {[%clk 0:02:50]} 8. Qb3 {[%clk 0:02:58]}  a5 {[%clk 0:02:49]} 9. Nc3 {[%clk 0:02:58]}  O-O {[%clk 0:02:46]} 10. d4 {[%clk 0:02:54]}  Na6 {[%clk 0:02:24]} 11. Bf4 {[%clk 0:02:49]}  d6 {[%clk 0:02:09]} 12. Rfd1 {[%clk 0:02:48]}  Rb8 {[%clk 0:02:01]} 13. Rac1 {[%clk 0:02:37]}  Qe7 {[%clk 0:01:52]} 14. Nb5 {[%clk 0:02:28]}  Bd5 {[%clk 0:01:50]} 15. Qc2 {[%clk 0:02:28]}  Be4 {[%clk 0:01:38]} 16. Qb3 {[%clk 0:02:23]}  Bd5 {[%clk 0:01:37]} 17. Qe3 {[%clk 0:02:11]}  Rfc8 {[%clk 0:01:21]} 18. Na7 {[%clk 0:01:59]}  Rd8 {[%clk 0:01:10]} 19. Nc6 {[%clk 0:01:58]}  Bxc6 {[%clk 0:01:10]} 20. Rxc6 {[%clk 0:01:59]}  Nd5 {[%clk 0:01:02]} 21. Qc1 {[%clk 0:01:59]}  Nxf4 {[%clk 0:00:58]} 22. Qxf4 {[%clk 0:02:00]}  Rb6 {[%clk 0:00:55]} 23. Rdc1 {[%clk 0:01:57]}  Rdb8 {[%clk 0:00:51]} 24. h4 {[%clk 0:01:43]}  h6 {[%clk 0:00:50]} 25. h5 {[%clk 0:01:30]}  Rxc6 {[%clk 0:00:49]} 26. Rxc6 {[%clk 0:01:31]}  Rb6 {[%clk 0:00:49]} 27. Rc2 {[%clk 0:01:26]}  c5 {[%clk 0:00:44]} 28. e3 {[%clk 0:01:15]}  Qd7 {[%clk 0:00:26]} 29. b3 {[%clk 0:01:09]}  Nc7 {[%clk 0:00:21]} 30. g4 {[%clk 0:00:57]}  Nd5 {[%clk 0:00:20]} 31. Qg3 {[%clk 0:00:58]}  Nf6 {[%clk 0:00:20]} 32. g5 {[%clk 0:00:54]}  Ne4 {[%clk 0:00:19]} 33. Qg4 {[%clk 0:00:53]}  Nxg5 {[%clk 0:00:19]} 34. Nxg5 {[%clk 0:00:54]}  hxg5 {[%clk 0:00:18]} 35. Qxg5 {[%clk 0:00:54]}  f6 {[%clk 0:00:18]} 36. Qg4 {[%clk 0:00:52]}  Kf8 {[%clk 0:00:12]} 37. Qg6 {[%clk 0:00:50]}  Qf7 {[%clk 0:00:10]} 38. Qh7 {[%clk 0:00:50]}  Ke7 {[%clk 0:00:10]} 39. Bh3 {[%clk 0:00:42]}  f5 {[%clk 0:00:10]} 40. d5 {[%clk 0:00:37]}  exd5 {[%clk 0:00:05]} 41. Bxf5 {[%clk 0:00:38]}  Qf6 {[%clk 0:00:04]} 42. Bg6 {[%clk 0:00:29]}  Rb8 {[%clk 0:00:04]} 43. h6 {[%clk 0:00:27]}  Qg5+ {[%clk 0:00:01]} 44. Kf1 {[%clk 0:00:26]}  Qxh6 {[%clk 0:00:02]} 45. Ke2 {[%clk 0:00:19]}  Qxh7 {[%clk 0:00:02]} 46. Bxh7 {[%clk 0:00:20]}  Kf6 {[%clk 0:00:02]} 47. Bd3 {[%clk 0:00:20]}  Ke5 {[%clk 0:00:02]} 48. Rc1 {[%clk 0:00:20]}  Rc8 {[%clk 0:00:03]} 49. Rg1 {[%clk 0:00:20]}  c4 {[%clk 0:00:03]} 50. bxc4 {[%clk 0:00:18]}  dxc4 {[%clk 0:00:04]} 51. Bc2 {[%clk 0:00:19]}  Kf6 {[%clk 0:00:04]} 52. Rg6+ {[%clk 0:00:19]}  Kf7 {[%clk 0:00:04]} 53. Rg4 {[%clk 0:00:19]}  c3 {[%clk 0:00:04]} 54. Rf4+ {[%clk 0:00:20]}  Ke7 {[%clk 0:00:04]} 55. Kd3 {[%clk 0:00:20]}  Rf8 {[%clk 0:00:04]} 56. Rxf8 {[%clk 0:00:16]}  Kxf8 {[%clk 0:00:04]} 57. f4 {[%clk 0:00:17]}  Ke7 {[%clk 0:00:04]} 58. e4 {[%clk 0:00:17]}  Ke6 {[%clk 0:00:04]} 59. Kc4 {[%clk 0:00:17]}  Ke7 {[%clk 0:00:04]} 60. Kd5 {[%clk 0:00:18]}  Kf6 {[%clk 0:00:03]} 61. Bd3 {[%clk 0:00:18]}  Ke7 {[%clk 0:00:03]} 62. Bc2 {[%clk 0:00:18]}  Kf6 {[%clk 0:00:03]} 63. Bb3 {[%clk 0:00:18]}  Ke7 {[%clk 0:00:03]} 64. Kc6 {[%clk 0:00:18]}  Kf6 {[%clk 0:00:03]} 65. Kd7 {[%clk 0:00:18]}  Bc5 {[%clk 0:00:02]} 66. Kc6 {[%clk 0:00:17]}  Bb4 {[%clk 0:00:02]} 67. Kd5 {[%clk 0:00:16]}  Ke7 {[%clk 0:00:02]} 68. e5 {[%clk 0:00:17]}  dxe5 {[%clk 0:00:01]} 69. fxe5 {[%clk 0:00:18]}  Kd7 {[%clk 0:00:02]} 70. Ke4 {[%clk 0:00:18]}  Ke7 {[%clk 0:00:03]} 71. e6 {[%clk 0:00:19]}  Kf6 {[%clk 0:00:03]} 72. Kd5 {[%clk 0:00:18]}  Be7 {[%clk 0:00:03]} 73. Ke4 {[%clk 0:00:18]}  Bb4 {[%clk 0:00:03]} 74. Kd5 {[%clk 0:00:18]}  Be7 {[%clk 0:00:03]} 75. Kc4 {[%clk 0:00:18]}  Bb4 {[%clk 0:00:04]} 76. Kd3 {[%clk 0:00:19]}  Ke7 {[%clk 0:00:03]} 77. Ke4 {[%clk 0:00:19]}  Kd6 {[%clk 0:00:03]} 78. Kd4 {[%clk 0:00:16]}  Ke7 {[%clk 0:00:03]} 79. Ke4 {[%clk 0:00:16]} 1/2-1/2


[Site "https://www.chess.com"]

[Event "Titled Tuesday Blitz February 15 Early 2022"]
[White "Ardila, Oscar Humberto"]
[Black "Noroozi, Omid"]
[WhiteFideId "4404742"]
[BlackFideId "12501190"]
[WhiteElo "1898"]
[BlackElo "2236"]
[Result "0-1"]
[Round "01"]
[TimeControl "180+1"]
[Date "2022.02.15"]
[WhiteClock "0:00:10"]
[BlackClock "0:02:16"]

1. d4 {[%clk 0:02:55]}  d5 {[%clk 0:02:59]} 2. c4 {[%clk 0:02:55]}  e6 {[%clk 0:03:00]} 3. cxd5 {[%clk 0:02:55]}  exd5 {[%clk 0:03:00]} 4. Nc3 {[%clk 0:02:56]}  c6 {[%clk 0:03:00]} 5. Nf3 {[%clk 0:02:54]}  Bf5 {[%clk 0:03:00]} 6. Bf4 {[%clk 0:02:54]}  Bd6 {[%clk 0:03:00]} 7. Bxd6 {[%clk 0:02:53]}  Qxd6 {[%clk 0:03:00]} 8. e3 {[%clk 0:02:53]}  Ne7 {[%clk 0:02:59]} 9. Be2 {[%clk 0:02:53]}  O-O {[%clk 0:03:00]} 10. O-O {[%clk 0:02:54]}  Nd7 {[%clk 0:03:00]} 11. a3 {[%clk 0:02:54]}  a5 {[%clk 0:02:59]} 12. Na4 {[%clk 0:02:52]}  b5 {[%clk 0:02:58]} 13. Nc5 {[%clk 0:02:44]}  Nxc5 {[%clk 0:02:57]} 14. dxc5 {[%clk 0:02:45]}  Qxc5 {[%clk 0:02:58]} 15. Rc1 {[%clk 0:02:45]}  Qd6 {[%clk 0:02:58]} 16. Nd4 {[%clk 0:02:44]}  Bd7 {[%clk 0:02:59]} 17. Qc2 {[%clk 0:02:39]}  Rfc8 {[%clk 0:02:59]} 18. Qc5 {[%clk 0:02:28]}  Qxc5 {[%clk 0:02:59]} 19. Rxc5 {[%clk 0:02:29]}  Nf5 {[%clk 0:02:50]} 20. Nxf5 {[%clk 0:02:03]}  Bxf5 {[%clk 0:02:51]} 21. Rfc1 {[%clk 0:02:03]}  Bd7 {[%clk 0:02:50]} 22. f3 {[%clk 0:01:42]}  Kf8 {[%clk 0:02:45]} 23. Bd3 {[%clk 0:01:39]}  Ke7 {[%clk 0:02:44]} 24. e4 {[%clk 0:01:38]}  dxe4 {[%clk 0:02:43]} 25. Bxe4 {[%clk 0:01:38]}  g6 {[%clk 0:02:42]} 26. Kf2 {[%clk 0:01:37]}  Kd6 {[%clk 0:02:40]} 27. f4 {[%clk 0:01:23]}  Rc7 {[%clk 0:02:37]} 28. Bf3 {[%clk 0:01:18]}  Re8 {[%clk 0:02:33]} 29. h3 {[%clk 0:01:12]}  Re6 {[%clk 0:02:29]} 30. g4 {[%clk 0:01:11]}  Ke7 {[%clk 0:02:29]} 31. R1c2 {[%clk 0:00:51]}  Rc8 {[%clk 0:02:27]} 32. Rc1 {[%clk 0:00:51]}  Rd6 {[%clk 0:02:23]} 33. Re1+ {[%clk 0:00:48]}  Kf8 {[%clk 0:02:22]} 34. Re2 {[%clk 0:00:45]}  Be6 {[%clk 0:02:22]} 35. Rec2 {[%clk 0:00:42]}  Bc4 {[%clk 0:02:22]} 36. a4 {[%clk 0:00:31]}  Rcd8 {[%clk 0:02:17]} 37. axb5 {[%clk 0:00:29]}  cxb5 {[%clk 0:02:18]} 38. Ke1 {[%clk 0:00:14]}  Rd3 {[%clk 0:02:15]} 39. Bc6 {[%clk 0:00:12]}  Rxh3 {[%clk 0:02:13]} 40. Bxb5 {[%clk 0:00:12]}  Rh1+ {[%clk 0:02:14]} 41. Kf2 {[%clk 0:00:10]}  Rh2+ {[%clk 0:02:15]} 42. Kg3 {[%clk 0:00:10]}  Rxc2 {[%clk 0:02:16]} 0-1


[Site "https://www.chess.com"]

[Event "Titled Tuesday Blitz February 15 Early 2022"]
[White "Begunov, Konstantin"]
[Black "Garriga Cazorla, Pere"]
[WhiteFideId "4118510"]
[BlackFideId "32011601"]
[WhiteElo "2262"]
[BlackElo "2458"]
[Result "0-1"]
[Round "01"]
[TimeControl "180+1"]
[Date "2022.02.15"]
[WhiteClock "0:00:02"]
[BlackClock "0:00:21"]

1. d4 {[%clk 0:02:59]}  Nf6 {[%clk 0:02:57]} 2. c4 {[%clk 0:02:59]}  e6 {[%clk 0:02:53]} 3. Nf3 {[%clk 0:02:59]}  c5 {[%clk 0:02:53]} 4. Nc3 {[%clk 0:02:58]}  cxd4 {[%clk 0:02:50]} 5. Nxd4 {[%clk 0:02:59]}  a6 {[%clk 0:02:46]} 6. g3 {[%clk 0:02:58]}  h5 {[%clk 0:02:40]} 7. h4 {[%clk 0:02:49]}  Nc6 {[%clk 0:02:20]} 8. Bg2 {[%clk 0:02:49]}  Qb6 {[%clk 0:02:15]} 9. Nc2 {[%clk 0:02:43]}  Ne5 {[%clk 0:02:14]} 10. Ne3 {[%clk 0:02:26]}  Qc7 {[%clk 0:02:13]} 11. Qb3 {[%clk 0:02:08]}  Rb8 {[%clk 0:02:09]} 12. O-O {[%clk 0:02:08]}  b6 {[%clk 0:02:09]} 13. Rd1 {[%clk 0:01:53]}  Bb7 {[%clk 0:02:09]} 14. Qa4 {[%clk 0:01:35]}  Be7 {[%clk 0:01:50]} 15. b3 {[%clk 0:01:34]}  b5 {[%clk 0:01:37]} 16. cxb5 {[%clk 0:01:18]}  Bxg2 {[%clk 0:01:31]} 17. Kxg2 {[%clk 0:01:16]}  Qxc3 {[%clk 0:01:30]} 18. Bd2 {[%clk 0:01:13]}  Qc7 {[%clk 0:01:21]} 19. bxa6 {[%clk 0:01:12]}  O-O {[%clk 0:01:12]} 20. Rdc1 {[%clk 0:01:11]}  Qa7 {[%clk 0:01:12]} 21. b4 {[%clk 0:01:10]}  Nc6 {[%clk 0:00:56]} 22. b5 {[%clk 0:01:09]}  Nd4 {[%clk 0:00:56]} 23. Kf1 {[%clk 0:00:58]}  Nxb5 {[%clk 0:00:54]} 24. Rab1 {[%clk 0:00:46]}  Na3 {[%clk 0:00:54]} 25. Rxb8 {[%clk 0:00:44]}  Rxb8 {[%clk 0:00:55]} 26. Rc3 {[%clk 0:00:33]}  Nb1 {[%clk 0:00:53]} 27. Rd3 {[%clk 0:00:29]}  Nxd2+ {[%clk 0:00:52]} 28. Rxd2 {[%clk 0:00:30]}  Rb6 {[%clk 0:00:53]} 29. Rc2 {[%clk 0:00:26]}  Qa8 {[%clk 0:00:48]} 30. f3 {[%clk 0:00:20]}  Rxa6 {[%clk 0:00:48]} 31. Qf4 {[%clk 0:00:17]}  Rxa2 {[%clk 0:00:45]} 32. Rc7 {[%clk 0:00:16]}  Bd8 {[%clk 0:00:43]} 33. Rc5 {[%clk 0:00:15]}  Bb6 {[%clk 0:00:43]} 34. Rb5 {[%clk 0:00:13]}  Bxe3 {[%clk 0:00:40]} 35. Qxe3 {[%clk 0:00:14]}  Qc6 {[%clk 0:00:26]} 36. Qd3 {[%clk 0:00:13]}  Ra1+ {[%clk 0:00:24]} 37. Kg2 {[%clk 0:00:13]}  Ra8 {[%clk 0:00:24]} 38. Rb4 {[%clk 0:00:05]}  e5 {[%clk 0:00:22]} 39. Qf5 {[%clk 0:00:04]}  Qe6 {[%clk 0:00:22]} 40. Qd3 {[%clk 0:00:03]}  d5 {[%clk 0:00:22]} 41. Rb7 {[%clk 0:00:02]}  e4 {[%clk 0:00:22]} 42. Qd4 {[%clk 0:00:01]}  exf3+ {[%clk 0:00:21]} 43. exf3 {[%clk 0:00:02]}  Ra2+ {[%clk 0:00:20]} 44. Rb2 {[%clk 0:00:01]}  Rxb2+ {[%clk 0:00:20]} 45. Qxb2 {[%clk 0:00:02]}  Qd7 {[%clk 0:00:20]} 46. Qb8+ {[%clk 0:00:02]}  Kh7 {[%clk 0:00:21]} 47. g4 {[%clk 0:00:02]}  hxg4 {[%clk 0:00:20]} 48. h5 {[%clk 0:00:02]}  gxf3+ {[%clk 0:00:21]} 0-1


[Site "https://www.chess.com"]

[Event "Titled Tuesday Blitz February 15 Early 2022"]
[White "Bhagwat, Vinod"]
[Black "Levitskiy, Andrey"]
[WhiteFideId "5005949"]
[BlackFideId "14132885"]
[WhiteElo "2115"]
[BlackElo "2301"]
[Result "0-1"]
[Round "01"]
[TimeControl "180+1"]
[Date "2022.02.15"]
[WhiteClock "0:01:18"]
[BlackClock "0:01:43"]

1. d4 {[%clk 0:02:59]}  Nf6 {[%clk 0:02:59]} 2. c4 {[%clk 0:02:58]}  e6 {[%clk 0:03:00]} 3. Nc3 {[%clk 0:02:59]}  Bb4 {[%clk 0:03:00]} 4. Qc2 {[%clk 0:02:59]}  Nc6 {[%clk 0:03:00]} 5. Nf3 {[%clk 0:02:58]}  d6 {[%clk 0:03:00]} 6. Bg5 {[%clk 0:02:58]}  h6 {[%clk 0:03:00]} 7. Bd2 {[%clk 0:02:57]}  Qe7 {[%clk 0:02:59]} 8. e3 {[%clk 0:02:55]}  e5 {[%clk 0:02:51]} 9. a3 {[%clk 0:02:55]}  Bxc3 {[%clk 0:02:50]} 10. Bxc3 {[%clk 0:02:56]}  a5 {[%clk 0:02:42]} 11. Be2 {[%clk 0:02:50]}  O-O {[%clk 0:02:40]} 12. O-O {[%clk 0:02:48]}  Bg4 {[%clk 0:02:34]} 13. Rfe1 {[%clk 0:02:46]}  Rfe8 {[%clk 0:02:27]} 14. d5 {[%clk 0:02:16]}  Nb8 {[%clk 0:02:26]} 15. e4 {[%clk 0:02:14]}  Nbd7 {[%clk 0:02:18]} 16. b4 {[%clk 0:02:14]}  Nh5 {[%clk 0:02:09]} 17. Nd2 {[%clk 0:01:59]}  Bxe2 {[%clk 0:02:08]} 18. Rxe2 {[%clk 0:01:59]}  Nf4 {[%clk 0:02:08]} 19. Re3 {[%clk 0:01:58]}  Qg5 {[%clk 0:02:08]} 20. g3 {[%clk 0:01:51]}  Nf6 {[%clk 0:01:57]} 21. Kh1 {[%clk 0:01:31]}  Nh3 {[%clk 0:01:44]} 22. Nf3 {[%clk 0:01:18]}  Qh5 {[%clk 0:01:43]} 0-1


[Site "https://www.chess.com"]